bitfinex/quotes_BTCUSD_20220211
["timestamp","ask_amount","ask_price","bid_price","bid_amount"]
[1644539736344,0.058306,42917.0,42912.0,0.27890051]
[1644539736745,0.0428,42923.0,42912.0,0.27890051]
[1644539736746,0.05,42922.0,42912.0,0.27890051]
[1644539736944,0.159388,42923.0,42919.0,0.31303268]
[1644539737201,0.13982,42930.0,42919.0,0.58681935]
[1644539737202,0.058284,42926.0,42919.0,0.58681935]
[1644539737894,0.009326,42925.0,42919.0,0.58681935]
[1644539738095,0.009326,42925.0,42924.0,0.21314479]
[1644539738293,0.116572,42926.0,42919.0,0.30303268]
[1644539738494,0.116572,42926.0,42911.0,0.37323389]
[1644539738695,0.158284,42926.0,42911.0,0.37323389]
[1644539738892,0.158284,42926.0,42911.0,0.0111]
[1644539738893,0.108284,42926.0,42911.0,0.0111]
[1644539739095,0.058307,42918.0,42911.0,0.0111]
[1644539739296,0.21723771,42917.0,42916.0,0.00024373]
[1644539739494,0.16662,42917.0,42916.0,0.00024373]
[1644539740297,0.16662,42917.0,42911.0,0.0111]
[1644539740298,0.27492992,42917.0,42911.0,0.0111]
[1644539740501,0.121638,42914.0,42911.0,0.0111]
[1644539740702,0.101126,42913.0,42911.0,0.00028364]
[1644539740944,0.151126,42913.0,42911.0,0.00028364]
[1644539741144,0.05,42912.0,42911.0,0.00028364]
[1644539741345,0.0928,42912.0,42911.0,0.00028364]
[1644539741555,0.142484,42912.0,42911.0,0.00028364]
[1644539742045,0.147484,42912.0,42911.0,0.00028364]
[1644539742444,0.142484,42912.0,42911.0,0.00028364]
[1644539742648,0.65,42911.0,42910.0,0.0011]
[1644539742850,0.75,42911.0,42910.0,0.0011]
[1644539743648,0.7928,42911.0,42910.0,0.0011]
[1644539743948,0.7878,42911.0,42910.0,0.0011]
[1644539744348,0.7878,42911.0,42908.0,0.00024378]
[1644539744547,0.058328,42910.0,42908.0,0.00024378]
[1644539744802,0.65,42908.0,42903.0,0.0011]
[1644539745004,0.4,42906.0,42901.0,0.01134727]
[1644539745206,0.0428,42905.0,42901.0,0.01134727]
[1644539745404,0.005,42903.0,42901.0,0.01134727]
[1644539745603,0.0428,42902.0,42901.0,0.01134727]
[1644539745811,0.0428,42902.0,42901.0,0.25629616]
[1644539746004,0.0428,42902.0,42901.0,0.01134727]
[1644539746900,0.0307,42902.0,42901.0,0.01134727]
[1644539747900,0.108334,42903.0,42901.0,0.01134727]
[1644539747901,0.058334,42903.0,42901.0,0.01134727]
[1644539748102,0.058313,42907.0,42901.0,0.01134727]
[1644539749045,0.06460224,42906.0,42901.0,0.01134727]
[1644539749245,0.116642,42904.0,42901.0,0.01134727]
[1644539749446,0.05832,42903.0,42901.0,0.01134727]
[1644539749846,0.10832,42903.0,42901.0,0.01134727]
[1644539750049,0.0428,42902.0,42901.0,0.01134727]
[1644539750352,0.0428,42902.0,42889.0,0.00206263]
[1644539750353,0.058338,42897.0,42889.0,0.00206263]
[1644539750548,0.005,42895.0,42889.0,0.00206263]
[1644539750756,0.005,42895.0,42877.0,0.0011]
[1644539750757,0.02011524,42883.0,42877.0,0.0011]
[1644539750948,0.05,42884.0,42877.0,0.0011]
[1644539751154,0.2394502,42886.0,42879.0,0.3224449]
[1644539751347,0.2894502,42886.0,42879.0,0.3224449]
[1644539751546,0.058344,42883.0,42877.0,0.0011]
[1644539751752,0.3,42895.0,42877.0,0.0011]
[1644539751753,0.1,42904.0,42882.0,0.05]
[1644539751949,0.1,42904.0,42896.0,0.05]
[1644539752208,1.216804,42911.0,42883.0,0.49037661]
[1644539752209,0.05,42911.0,42902.0,0.2483]
[1644539752400,0.05367413,42917.0,42902.0,0.2483]
[1644539752401,0.05367413,42917.0,42908.0,0.19619782]
[1644539752601,0.05367413,42917.0,42909.0,0.0428]
[1644539752602,0.116588,42915.0,42909.0,0.0428]
[1644539752800,0.058293,42915.0,42909.0,0.0428]
[1644539752998,0.058293,42915.0,42910.0,0.25812217]
[1644539753198,0.058293,42915.0,42911.0,0.0428]
[1644539753804,0.058293,42915.0,42911.0,0.15938372]
[1644539753998,0.085,42913.0,42911.0,0.15938372]
[1644539754400,0.085,42913.0,42911.0,0.0428]
[1644539754799,0.17245168,42913.0,42911.0,0.0428]
[1644539755000,0.17245168,42913.0,42902.0,0.25755125]
[1644539755001,0.085,42913.0,42902.0,0.25755125]
[1644539755201,0.058308,42912.0,42903.0,0.3]
[1644539755400,0.108308,42912.0,42907.0,0.21918425]
[1644539755806,0.108308,42912.0,42903.0,0.3]
[1644539755807,0.2552591,42911.0,42899.0,0.11661832]
[1644539756058,0.058326,42899.0,42892.0,0.3]
[1644539756256,0.108326,42899.0,42891.0,0.3]
[1644539756459,0.108326,42899.0,42890.0,0.4838]
[1644539756858,0.108326,42899.0,42893.0,0.40561491]
[1644539757056,0.108326,42899.0,42893.0,0.34729066]
[1644539757455,0.00047884,42898.0,42893.0,0.34729066]
[1644539757658,0.00047884,42898.0,42892.0,0.19161959]
[1644539758056,0.00047884,42898.0,42893.0,0.29147676]
[1644539758458,0.07720568,42892.0,42890.0,0.4838]
[1644539758659,0.07720568,42892.0,42887.0,0.3]
[1644539758660,0.13553468,42892.0,42887.0,0.00023484]
[1644539758858,0.108329,42892.0,42887.0,0.00023484]
[1644539759257,0.108329,42892.0,42887.0,0.30023484]
[1644539759711,0.108329,42892.0,42887.0,0.00023484]
[1644539759903,0.14146502,42890.0,42887.0,0.00023484]
[1644539760102,0.19146502,42890.0,42887.0,0.00023484]
[1644539760303,0.108344,42890.0,42887.0,0.00023484]
[1644539760701,0.116686,42889.0,42885.0,0.28809059]
[1644539761101,0.116686,42889.0,42886.0,0.00023484]
[1644539761505,0.18484385,42891.0,42886.0,0.30023484]
[1644539761506,0.17551085,42891.0,42886.0,0.30023484]
[1644539761712,8.85e-06,42891.0,42889.0,0.05]
[1644539761903,0.03525337,42914.0,42890.0,0.3428]
[1644539762107,0.058314,42907.0,42899.0,0.05]
[1644539762307,0.058314,42907.0,42900.0,0.0428]
[1644539762604,0.058314,42907.0,42902.0,0.05830505]
[1644539762803,0.058314,42907.0,42903.0,0.0428]
[1644539763004,0.058314,42907.0,42904.0,0.0428]
[1644539763203,0.058314,42907.0,42900.0,0.54795671]
[1644539763204,0.058314,42907.0,42905.0,0.0428]
[1644539763442,0.058314,42907.0,42906.0,0.0428]
[1644539763642,0.058314,42907.0,42905.0,0.0428]
[1644539764844,0.058314,42907.0,42906.0,0.2779076]
[1644539765644,0.058296,42911.0,42906.0,0.2779076]
[1644539765944,0.0004792,42909.0,42907.0,0.24598528]
[1644539766147,0.0004792,42909.0,42908.0,0.0428]
[1644539766544,0.02073144,42917.0,42911.0,0.1983]
[1644539766747,9.0,42918.0,42909.0,0.65]
[1644539766748,8.0016,42918.0,42915.0,0.95382056]
[1644539766950,8.0016,42918.0,42917.0,0.23939047]
[1644539766951,5.95972723,42918.0,42917.0,0.23939047]
[1644539767211,0.01,42939.0,42919.0,0.1983]
[1644539767402,0.01,42939.0,42926.0,0.05]
[1644539767603,0.01,42939.0,42935.0,0.33940448]
[1644539767803,0.0001,42939.0,42936.0,0.1010508]
[1644539768002,0.43,42949.0,42941.0,0.21681653]
[1644539768202,0.425,42949.0,42942.0,0.0428]
[1644539768403,0.425,42949.0,42936.0,0.0428]
[1644539768404,0.009322,42944.0,42936.0,0.0428]
[1644539768602,0.058265,42942.0,42936.0,0.0428]
[1644539769201,0.058265,42942.0,42939.0,0.26589711]
[1644539769405,0.058265,42942.0,42940.0,0.0428]
[1644539769609,0.425,42949.0,42940.0,0.0428]
[1644539770007,0.18931934,42948.0,42940.0,0.0428]
[1644539770405,0.116509,42948.0,42940.0,0.0428]
[1644539770803,0.00047952,42946.0,42940.0,0.0428]
[1644539771643,0.058249,42947.0,42940.0,0.0428]
[1644539771843,0.08319776,42943.0,42940.0,0.0428]
[1644539772252,0.05,42942.0,42940.0,0.0428]
[1644539772445,0.05,42942.0,42923.0,0.2886]
[1644539772446,0.07224545,42935.0,42929.0,0.0428]
[1644539772746,0.166545,42938.0,42929.0,0.0428]
[1644539772946,0.19319908,42936.0,42929.0,0.0428]
[1644539773147,0.00047954,42934.0,42931.0,0.3145766]
[1644539773346,0.00047954,42934.0,42930.0,0.05826412]
[1644539773545,0.00047954,42934.0,42926.0,0.23207904]
[1644539773746,0.0793291,42931.0,42925.0,0.0428]
[1644539773947,0.00047954,42934.0,42923.0,0.11653513]
[1644539773948,0.116546,42933.0,42923.0,0.11653513]
[1644539774147,0.05,42931.0,42923.0,0.11653513]
[1644539774347,0.00047955,42930.0,42926.0,0.28499072]
[1644539774798,0.00047955,42930.0,42924.0,0.23317856]
[1644539775192,0.058273,42932.0,42924.0,0.23317856]
[1644539775593,0.00047955,42929.0,42924.0,0.25391]
[1644539776192,0.05047955,42929.0,42924.0,0.25391]
[1644539776395,0.05,42929.0,42924.0,0.25391]
[1644539776798,0.10875855,42929.0,42927.0,0.27108339]
[1644539776994,0.10875855,42929.0,42924.0,0.02073144]
[1644539777696,0.108279,42929.0,42927.0,0.02073144]
[1644539778096,0.10875855,42929.0,42927.0,0.02073144]
[1644539778740,0.29803886,42929.0,42927.0,0.02073144]
[1644539778942,0.29755931,42929.0,42927.0,0.02073144]
[1644539779341,0.29755931,42929.0,42924.0,0.02073144]
[1644539779342,0.27578763,42928.0,42924.0,0.02073144]
[1644539779541,0.27578763,42928.0,42911.0,0.7511]
[1644539779542,0.35522046,42928.0,42911.0,0.7511]
[1644539779742,0.19196459,42917.0,42909.0,0.477672]
[1644539779947,0.19196459,42917.0,42908.0,0.19597593]
[1644539780141,0.24196459,42917.0,42908.0,0.19597593]
[1644539780341,0.00047957,42915.0,42908.0,0.19597593]
[1644539780743,0.05877557,42915.0,42908.0,0.19597593]
[1644539780941,0.05877557,42915.0,42909.0,0.05829342]
[1644539781140,0.05877557,42915.0,42909.0,0.05836542]
[1644539781343,0.05,42917.0,42909.0,0.05836542]
[1644539781545,0.00047958,42914.0,42910.0,0.05]
[1644539781742,0.05,42927.0,42917.0,0.22367548]
[1644539781941,0.19329946,42929.0,42918.0,0.05827575]
[1644539782201,0.058277,42922.0,42917.0,0.1165515]
[1644539782394,0.058277,42922.0,42917.0,0.43492738]
[1644539784397,0.058277,42922.0,42918.0,0.05827552]
[1644539785400,0.058277,42922.0,42911.0,0.05829115]
[1644539786246,0.28293801,42922.0,42914.0,0.32116047]
[1644539786445,0.05876895,42919.0,42914.0,0.32116047]
[1644539787046,0.05876895,42919.0,42914.0,0.37944701]
[1644539787246,0.10876895,42919.0,42914.0,0.37944701]
[1644539787445,0.108289,42919.0,42914.0,0.37944701]
[1644539787750,0.12950039,42919.0,42914.0,0.05828654]
[1644539788549,0.12950039,42919.0,42915.0,0.31369647]
[1644539788550,0.07902044,42919.0,42915.0,0.31369647]
[1644539788748,0.02121139,42919.0,42915.0,0.31369647]
[1644539788947,0.02121139,42919.0,42915.0,0.41369647]
[1644539789147,0.02121139,42919.0,42914.0,0.05828654]
[1644539789794,0.04146288,42919.0,42914.0,0.05828654]
[1644539790096,0.02121139,42919.0,42914.0,0.05828654]
[1644539790299,0.02121139,42919.0,42915.0,0.25108244]
[1644539790896,0.02073144,42919.0,42913.0,0.11656745]
[1644539791095,0.02073144,42919.0,42909.0,0.00024153]
[1644539791297,0.02121139,42919.0,42911.0,0.05829199]
[1644539791694,0.04194283,42919.0,42911.0,0.05829199]
[1644539791896,0.26586349,42919.0,42914.0,0.31418687]
[1644539792094,0.31538354,42919.0,42914.0,0.31418687]
[1644539792495,0.00047995,42917.0,42914.0,0.31418687]
[1644539792798,0.058296,42916.0,42914.0,0.31418687]
[1644539793094,0.108296,42916.0,42914.0,0.31418687]
[1644539793545,0.108296,42916.0,42911.0,0.05829199]
[1644539794144,0.12902744,42916.0,42911.0,0.05829199]
[1644539794443,0.12902744,42916.0,42911.0,0.37006547]
[1644539794644,0.12902744,42916.0,42911.0,0.31177348]
[1644539794843,0.12950739,42916.0,42911.0,0.37006732]
[1644539795045,0.12950739,42916.0,42912.0,0.27784042]
[1644539795646,0.15023883,42916.0,42911.0,0.37006732]
[1644539795947,0.07902744,42916.0,42913.0,0.19502376]
[1644539796246,0.0795074,42916.0,42913.0,0.05828525]
[1644539796549,0.0795074,42916.0,42909.0,0.00024153]
[1644539796747,0.07255346,42914.0,42909.0,0.00024153]
[1644539796947,0.058305,42914.0,42904.0,0.500072]
[1644539797202,0.058305,42914.0,42909.0,0.00024153]
[1644539797395,0.19658297,42910.0,42909.0,0.00024153]
[1644539797598,0.32717829,42907.0,42904.0,0.500072]
[1644539797798,0.32717829,42907.0,42902.0,7.2e-05]
[1644539798001,0.06415701,42906.0,42901.0,0.00096632]
[1644539798295,0.06415701,42906.0,42898.0,7.2e-05]
[1644539798495,0.06415701,42906.0,42897.0,0.001072]
[1644539798496,0.19772326,42900.0,42897.0,0.001072]
[1644539798696,0.24772326,42900.0,42897.0,0.001]
[1644539798899,0.29403826,42900.0,42897.0,0.001]
[1644539799096,0.29403826,42900.0,42897.0,0.33058968]
[1644539799296,0.29403826,42900.0,42897.0,0.001]
[1644539799699,0.3147697,42900.0,42897.0,0.001]
[1644539800299,0.3147697,42900.0,42891.0,0.01]
[1644539800504,0.64961431,42900.0,42891.0,0.01]
[1644539800703,0.058325,42898.0,42891.0,0.01]
[1644539800943,0.058325,42897.0,42891.0,0.01]
[1644539801146,0.08224092,42894.0,42891.0,0.01]
[1644539801345,0.23486006,42893.0,42891.0,0.01]
[1644539801743,0.29319506,42893.0,42891.0,0.01]
[1644539802246,0.108326,42894.0,42891.0,0.01]
[1644539802644,0.058326,42894.0,42891.0,0.01]
[1644539802843,0.05,42892.0,42891.0,0.01]
[1644539803047,0.058326,42894.0,42891.0,0.01]
[1644539803249,0.02073144,42897.0,42893.0,0.22039284]
[1644539803644,0.02073144,42894.0,42893.0,0.27869849]
[1644539805100,0.058306,42900.0,42894.0,0.02073]
[1644539805305,0.48403948,42916.0,42894.0,0.02073]
[1644539805306,0.00045536,42914.0,42897.0,0.05]
[1644539805504,2.24274702,42928.0,42896.0,0.1983]
[1644539805505,0.05,42921.0,42899.0,0.17485793]
[1644539805708,0.6566,42931.0,42906.0,0.058279]
[1644539805709,0.00045539,42914.0,42906.0,0.058279]
[1644539805902,0.00045539,42914.0,42907.0,0.0428]
[1644539806102,0.00045539,42914.0,42908.0,0.0428]
[1644539806303,0.00045539,42914.0,42913.0,0.25522674]
[1644539806706,0.01822978,42916.0,42913.0,0.25522674]
[1644539806904,0.01859509,42916.0,42913.0,0.29802674]
[1644539807504,0.01859509,42916.0,42913.0,0.34802674]
[1644539807706,0.01859509,42916.0,42914.0,0.174804]
[1644539807903,0.05,42931.0,42915.0,0.0428]
[1644539808106,0.0204435,42933.0,42918.0,0.05826665]
[1644539808450,0.2450553,42925.0,42920.0,0.35341825]
[1644539808644,0.2450553,42925.0,42919.0,0.0428]
[1644539808645,0.058275,42924.0,42919.0,0.0428]
[1644539809444,0.05863993,42924.0,42919.0,0.0428]
[1644539810050,0.31845266,42924.0,42919.0,0.0428]
[1644539810248,0.31808773,42924.0,42919.0,0.0428]
[1644539810449,0.31854378,42924.0,42919.0,0.0428]
[1644539811348,0.31808773,42924.0,42919.0,0.0428]
[1644539811748,0.31854378,42924.0,42919.0,0.0428]
[1644539812691,0.31808773,42924.0,42919.0,0.0428]
[1644539812889,0.31854378,42924.0,42919.0,0.0428]
[1644539813495,0.05873105,42924.0,42919.0,0.0428]
[1644539813891,0.058275,42924.0,42919.0,0.0428]
[1644539814089,0.05871237,42924.0,42919.0,0.0428]
[1644539815092,0.058275,42924.0,42919.0,0.0428]
[1644539815292,0.05871237,42924.0,42919.0,0.0428]
[1644539815690,0.05871237,42924.0,42923.0,0.25314043]
[1644539816248,0.05,42933.0,42923.0,0.25314043]
[1644539816249,0.3,42937.0,42923.0,0.29594043]
[1644539816441,0.058264,42932.0,42926.0,0.05826648]
[1644539816842,0.058264,42932.0,42927.0,0.28403225]
[1644539817642,0.05863354,42932.0,42927.0,0.28403225]
[1644539817842,0.00036954,42932.0,42927.0,0.28403225]
[1644539818047,0.00036954,42932.0,42928.0,0.0428]
[1644539818643,0.33860999,42947.0,42933.0,0.2279328]
[1644539818644,0.205634,42946.0,42933.0,0.2279328]
[1644539818848,0.58185433,42949.0,42936.0,0.11650647]
[1644539819048,0.116512,42942.0,42936.0,0.11650647]
[1644539819701,0.058254,42944.0,42941.0,0.2786672]
[1644539819897,0.058254,42944.0,42942.0,0.23781078]
[1644539820298,0.058254,42944.0,42941.0,0.3214672]
[1644539820497,0.425,42949.0,42941.0,0.0428]
[1644539820698,0.058246,42948.0,42941.0,0.0428]
[1644539821301,0.2201106,42943.0,42941.0,0.0428]
[1644539821502,0.00036969,42947.0,42941.0,0.0428]
[1644539821503,0.26994933,42945.0,42941.0,0.0428]
[1644539821699,0.058262,42944.0,42941.0,0.0428]
[1644539823000,0.058262,42944.0,42941.0,0.2728]
[1644539823453,0.425,42949.0,42941.0,0.2728]
[1644539823454,0.058247,42947.0,42941.0,0.2728]
[1644539823652,0.58185433,42949.0,42941.0,0.23]
[1644539823853,0.57229682,42949.0,42941.0,0.23]
[1644539824059,0.9314738,42949.0,42941.0,0.23]
[1644539824253,0.07940759,42945.0,42941.0,0.23]
[1644539824655,0.13766759,42945.0,42941.0,0.23]
[1644539824854,0.18766759,42945.0,42941.0,0.23]
[1644539825353,0.23465672,42942.0,42941.0,0.23]
[1644539825551,0.10826,42945.0,42941.0,0.23]
[1644539826559,0.05,42945.0,42941.0,0.45297489]
[1644539826754,0.62229682,42949.0,42941.0,0.45297489]
[1644539826955,0.41544249,42949.0,42942.0,0.05824633]
[1644539827214,0.42476449,42949.0,42942.0,0.05824633]
[1644539827407,0.41544249,42949.0,42942.0,0.05824633]
[1644539827607,0.41544249,42949.0,42944.0,0.25884374]
[1644539827810,0.41544249,42949.0,42945.0,0.27936573]
[1644539827811,0.47368549,42949.0,42945.0,0.27936573]
[1644539828010,0.47368549,42949.0,42945.0,0.32216573]
[1644539828011,0.41544249,42949.0,42945.0,0.32216573]
[1644539828209,0.04697655,42959.0,42949.0,0.65]
[1644539828411,0.04697655,42959.0,42950.0,0.3428]
[1644539828613,0.04697655,42959.0,42939.0,0.59471334]
[1644539828614,0.04891289,42959.0,42939.0,0.59471334]
[1644539828813,0.04891289,42959.0,42937.0,0.48564]
[1644539828814,0.05,42950.0,42937.0,0.56564]
[1644539829010,0.058254,42949.0,42937.0,0.56564]
[1644539829409,0.05,42946.0,42937.0,0.06564]
[1644539829608,0.05,42946.0,42938.0,0.25843249]
[1644539829810,0.05,42944.0,42938.0,0.25843249]
[1644539830009,0.0428,42952.0,42938.0,0.25843249]
[1644539830010,0.058258,42946.0,42938.0,0.25843249]
[1644539830611,0.3,42956.0,42938.0,0.25843249]
[1644539830612,0.33807178,42953.0,42938.0,0.25843249]
[1644539830810,0.24736314,42954.0,42945.0,0.19131527]
[1644539831251,0.11648,42957.0,42945.0,0.19131527]
[1644539831447,0.05,42963.0,42945.0,0.19131527]
[1644539831849,0.32561426,42963.0,42953.0,0.32352084]
[1644539832248,0.2798141,42958.0,42945.0,0.19131527]
[1644539832849,0.22118962,42951.0,42945.0,0.19131527]
[1644539833148,0.058234,42958.0,42945.0,0.19131527]
[1644539833348,0.00048735,42954.0,42945.0,0.19131527]
[1644539833547,0.058246,42953.0,42945.0,0.19131527]
[1644539833947,0.058246,42953.0,42950.0,0.21655922]
[1644539833948,0.108246,42953.0,42950.0,0.21655922]
[1644539834149,0.05,42953.0,42950.0,0.21655922]
[1644539834354,0.05,42962.0,42950.0,0.21655922]
[1644539834551,0.00048735,42954.0,42950.0,0.21655922]
[1644539835001,0.00048735,42954.0,42952.0,0.30718956]
[1644539835205,0.00048735,42954.0,42953.0,0.22689001]
[1644539835402,0.05026118,42963.0,42953.0,0.22689001]
[1644539835803,0.00041391,42955.0,42953.0,0.27689001]
[1644539836003,0.00041391,42955.0,42953.0,0.05]
[1644539836207,0.00041391,42955.0,42950.0,0.21655922]
[1644539836603,0.00026118,42962.0,42950.0,0.21655922]
[1644539837007,0.00048773,42955.0,42950.0,0.21655922]
[1644539837703,0.00048773,42955.0,42950.0,0.27478629]
[1644539837904,0.116471,42960.0,42958.0,0.21500957]
[1644539838107,0.166471,42960.0,42958.0,0.21500957]
[1644539838547,0.05,42960.0,42958.0,0.21500957]
[1644539838847,0.009319,42960.0,42958.0,0.5651623]
[1644539841348,0.009319,42960.0,42958.0,0.7951623]
[1644539841558,0.05848318,42962.0,42958.0,0.7951623]
[1644539841559,0.00026118,42962.0,42959.0,0.6]
[1644539841752,0.0004881,42961.0,42959.0,0.6]
[1644539842498,0.0004881,42961.0,42960.0,0.0428]
[1644539842698,0.00026118,42964.0,42960.0,0.0428]
[1644539842900,8.09e-06,42968.0,42961.0,0.65]
[1644539843100,0.01195208,42969.0,42964.0,0.05]
[1644539843101,0.00026248,42967.0,42964.0,0.05]
[1644539843301,0.02135095,42978.0,42966.0,0.65]
[1644539843502,0.009314,42968.0,42967.0,1.2608]
[1644539843699,0.02135095,42978.0,42967.0,1.3108]
[1644539843901,0.02135095,42978.0,42977.0,0.22354793]
[1644539843902,0.01635095,42978.0,42977.0,0.22354793]
[1644539844098,0.01,42989.0,42977.0,0.54465251]
[1644539844301,0.01,42989.0,42978.0,0.65]
[1644539844499,0.009313,42979.0,42978.0,0.65]
[1644539845099,0.009313,42979.0,42978.0,0.7]
[1644539845100,0.00226282,42979.0,42978.0,0.7]
[1644539845505,0.40226282,42979.0,42967.0,0.116363]
[1644539845703,0.40226282,42979.0,42959.0,0.5]
[1644539845704,0.05,42973.0,42959.0,0.5]
[1644539845955,0.05,42973.0,42963.0,0.01906777]
[1644539846152,0.00226282,42979.0,42963.0,0.01906777]
[1644539846352,0.058221,42975.0,42963.0,0.01906777]
[1644539846552,0.058218,42970.0,42969.0,0.57490169]
[1644539847155,0.05,42971.0,42969.0,0.57490169]
[1644539847555,0.00226282,42979.0,42969.0,0.57490169]
[1644539847753,0.00226282,42979.0,42972.0,0.21863425]
[1644539847955,0.06045982,42979.0,42972.0,0.21863425]
[1644539848559,0.00226282,42979.0,42972.0,0.21863425]
[1644539848853,0.00041271,42978.0,42972.0,0.21863425]
[1644539849254,0.00041271,42978.0,42973.0,0.320328]
[1644539849457,0.00041271,42978.0,42974.0,0.3423419]
[1644539849900,0.00226282,42979.0,42974.0,0.3423419]
[1644539850107,0.00041271,42978.0,42974.0,0.3423419]
[1644539850600,0.00041271,42978.0,42974.0,0.4923419]
[1644539850802,0.00041271,42978.0,42975.0,0.9510391]
[1644539850803,2.406e-05,42978.0,42975.0,0.9510391]
[1644539851003,0.05,42984.0,42976.0,0.34581977]
[1644539851199,0.116352,42997.0,42976.0,0.39581977]
[1644539851407,0.05,42995.0,42978.0,0.05]
[1644539851599,0.05,42995.0,42979.0,0.33171666]
[1644539851799,0.05,42995.0,42980.0,0.22441876]
[1644539852001,0.05,42995.0,42981.0,0.2686395]
[1644539852202,0.058176,42993.0,42982.0,0.28820727]
[1644539852402,0.05,42995.0,42982.0,0.28820727]
[1644539852608,0.00041233,42986.0,42982.0,0.28820727]
[1644539852803,0.05041233,42986.0,42982.0,0.28820727]
[1644539853205,0.05041233,42986.0,42983.0,0.31805241]
[1644539853450,0.05,42986.0,42983.0,0.31805241]
[1644539853652,0.05,42986.0,42980.0,0.23]
[1644539853951,0.05041233,42986.0,42981.0,0.0428]
[1644539854349,0.05041233,42986.0,42980.0,0.23]
[1644539854749,0.05,42986.0,42981.0,0.2514327]
[1644539854950,0.0004909,42985.0,42981.0,0.2514327]
[1644539855953,0.05,42986.0,42983.0,0.27920074]
[1644539856153,0.0004909,42985.0,42983.0,0.27920074]
[1644539857205,0.05,42986.0,42983.0,0.27920074]
[1644539857396,0.0004909,42986.0,42983.0,0.27920074]
[1644539857799,0.0004909,42986.0,42984.0,0.28277777]
[1644539857996,0.0004909,42986.0,42983.0,0.27920074]
[1644539858196,0.42,42987.0,42983.0,0.27920074]
[1644539858601,0.4204909,42987.0,42983.0,0.27920074]
[1644539859000,0.4204909,42987.0,42984.0,0.49519483]
[1644539859200,0.05,42986.0,42984.0,0.49519483]
[1644539859399,0.05,42986.0,42985.0,0.28785632]
[1644539859400,0.03610665,42986.0,42985.0,0.28785632]
[1644539860406,1.21246677,42986.0,42985.0,0.28785632]
[1644539860602,1.12646842,42986.0,42984.0,0.21159522]
[1644539861453,1.12646842,42986.0,42984.0,0.51159522]
[1644539861651,1.12646842,42986.0,42984.0,0.21159522]
[1644539862252,1.17646842,42986.0,42984.0,0.21159522]
[1644539862452,1.17646842,42986.0,42983.0,0.37920074]
[1644539862653,1.17646842,42986.0,42983.0,0.27920074]
[1644539862854,1.17646842,42986.0,42983.0,0.37920074]
[1644539863353,1.17646842,42986.0,42983.0,0.27920074]
[1644539863755,0.0500009,42987.0,42984.0,0.3]
[1644539863954,0.0500009,42987.0,42983.0,0.32920074]
[1644539863955,0.00532253,42987.0,42983.0,0.32920074]
[1644539864153,0.00532253,42987.0,42983.0,0.42920074]
[1644539864353,0.00483163,42987.0,42983.0,0.42920074]
[1644539864553,0.00530566,42987.0,42984.0,0.25312858]
[1644539864806,5.66e-06,42987.0,42984.0,0.25312858]
[1644539865107,5.66e-06,42987.0,42986.0,0.23594218]
[1644539865308,5.66e-06,42987.0,42984.0,0.35312858]
[1644539865504,0.01,42989.0,42984.0,0.25312858]
[1644539865713,0.01,42989.0,42983.0,0.27920074]
[1644539865909,0.05,42984.0,42982.0,0.01926325]
[1644539866111,0.0428,42983.0,42981.0,24.40981625]
[1644539867307,0.27582538,42983.0,42981.0,24.72749746]
[1644539867709,0.108205,42984.0,42981.0,24.72749746]
[1644539867710,0.158205,42984.0,42981.0,24.72749746]
[1644539867910,0.03106073,42988.0,42987.0,24.24955498]
[1644539868110,0.03106073,42988.0,42987.0,23.90034398]
[1644539868111,0.0428,42988.0,42987.0,23.90034398]
[1644539868563,0.12688598,42989.0,42987.0,23.90034398]
[1644539868564,0.06868398,42989.0,42987.0,23.90034398]
[1644539868758,0.06868398,42989.0,42987.0,24.2182526]
[1644539869157,0.068202,42989.0,42987.0,24.2182526]
[1644539869958,0.08319767,42989.0,42987.0,24.2182526]
[1644539870359,0.07819767,42989.0,42987.0,24.2182526]
[1644539870663,0.12819767,42989.0,42987.0,24.2182526]
[1644539870864,0.12819767,42989.0,42987.0,0.31790862]
[1644539871062,0.12819767,42989.0,42980.0,0.45705061]
[1644539871261,0.12819767,42989.0,42980.0,0.23]
[1644539871782,0.18686772,42989.0,42980.0,0.23]
[1644539871959,0.20212741,42989.0,42980.0,0.23]
[1644539872213,0.21128174,42985.0,42980.0,0.23]
[1644539872407,0.058198,42985.0,42980.0,0.23]
[1644539873410,0.058198,42985.0,42981.0,0.27701546]
[1644539874006,0.07319367,42985.0,42981.0,0.27701546]
[1644539875405,0.07319367,42985.0,42982.0,0.05]
[1644539875807,0.08250667,42985.0,42982.0,0.05]
[1644539876049,0.09750234,42985.0,42981.0,0.37701546]
[1644539876248,0.07319367,42985.0,42981.0,0.27701546]
[1644539876445,0.07319367,42985.0,42981.0,0.37701546]
[1644539876647,1.35955167,42985.0,42981.0,0.37701546]
[1644539877250,1.40955167,42985.0,42981.0,0.37701546]
[1644539877450,1.35135367,42985.0,42981.0,0.37701546]
[1644539877649,1.30135367,42985.0,42981.0,0.32701546]
[1644539877847,1.30135367,42985.0,42981.0,0.42701546]
[1644539878050,1.31634934,42985.0,42982.0,0.35427236]
[1644539878353,1.18051431,42985.0,42984.0,0.05]
[1644539879147,1.18051431,42985.0,42984.0,0.26346914]
[1644539879347,1.18051431,42985.0,42984.0,0.31346914]
[1644539879548,1.18051431,42985.0,42984.0,0.41346914]
[1644539880207,1.16551864,42985.0,42984.0,0.41346914]
[1644539880403,1.16551864,42985.0,42984.0,0.71818059]
[1644539880604,1.16551864,42985.0,42984.0,1.93618059]
[1644539880807,0.00026402,42988.0,42985.0,0.6]
[1644539881007,0.01047626,42989.0,42987.0,0.05]
[1644539881210,0.01,42989.0,42987.0,0.05]
[1644539881408,0.01047636,42989.0,42987.0,0.05]
[1644539881810,0.01047636,42989.0,42988.0,0.32622334]
[1644539882207,0.01047636,42989.0,42988.0,0.42622334]
[1644539882408,0.01,42989.0,42988.0,0.42622334]
[1644539884553,0.01,42989.0,42984.0,0.21346914]
[1644539884554,0.45,42987.0,42980.0,0.23]
[1644539884755,0.0428,42986.0,42980.0,0.2299998]
[1644539885053,0.13871,42986.0,42980.0,0.2299998]
[1644539885252,0.23897402,42986.0,42980.0,0.2299998]
[1644539885450,0.19754682,42981.0,42980.0,0.2299998]
[1644539885852,0.29754682,42981.0,42980.0,0.2299998]